bitfinex/quotes_SOLUSD_20250514
["timestamp","ask_amount","ask_price","bid_price","bid_amount"]
[1747189161261,16.75562288,181.32,181.27,8.43804099]
[1747189161570,83.1,181.31,181.27,8.43804099]
[1747189161900,91.53804099,181.31,181.27,8.43804099]
[1747189162105,91.53804099,181.31,181.25,26.0]
[1747189162399,83.1,181.31,181.3,8.43804099]
[1747189163296,83.1,181.31,181.27,0.28432314]
[1747189163660,83.1,181.31,181.3,8.43804099]
[1747189164369,2.80247049,181.32,181.27,0.28432314]
[1747189164587,83.1,181.35,181.31,8.43804099]
[1747189164894,88.61450314,181.34,181.33,8.43804099]
[1747189165104,83.1,181.34,181.29,26.28432314]
[1747189165400,83.1,181.34,181.28,0.28432314]
[1747189165593,85.92035729,181.34,181.32,8.43804099]
[1747189166475,85.92035729,181.34,181.28,0.28432314]
[1747189166674,85.92035729,181.34,181.33,8.43804099]
[1747189166887,91.43486043,181.34,181.28,0.28432314]
[1747189167094,91.43486043,181.34,181.33,8.43804099]
[1747189167467,22.72149683,181.38,181.33,8.43804099]
[1747189167468,83.1,181.37,181.33,0.28432314]
[1747189167801,83.1,181.37,181.36,8.43804099]
[1747189168104,83.1,181.37,181.33,0.28432314]
[1747189168266,83.1,181.37,181.36,8.43804099]
[1747189168705,88.613591,181.37,181.36,8.43804099]
[1747189168994,88.613591,181.37,181.35,8.43804099]
[1747189169293,88.613591,181.37,181.36,8.43804099]
[1747189169869,88.613591,181.37,181.34,8.43804099]
[1747189170071,88.613591,181.37,181.33,8.43804099]
[1747189170285,91.53804099,181.36,181.27,30.72]
[1747189170474,83.1,181.35,181.26,30.72]
[1747189170671,91.53804099,181.34,181.26,30.72]
[1747189170964,5.51480725,181.33,181.31,8.43804099]
[1747189171165,83.1,181.32,181.31,8.43804099]
[1747189174602,88.6151114,181.32,181.31,8.43804099]
[1747189174967,88.6151114,181.32,181.29,26.28432314]
[1747189175284,88.6151114,181.32,181.31,8.43804099]
[1747189175791,88.6151114,181.32,181.29,8.43804099]
[1747189176399,83.1,181.31,181.29,8.43804099]
[1747189176973,5.5157198,181.3,181.29,8.43804099]
[1747189177671,88.61546706,181.31,181.29,8.43804099]
[1747189177872,88.61546706,181.31,181.3,8.43804099]
[1747189179106,88.61546706,181.31,181.27,0.28432314]
[1747189179273,88.61546706,181.31,181.3,8.43804099]
[1747189179785,5.51450314,181.34,181.3,8.43804099]
[1747189179999,5.51450314,181.34,181.33,8.43804099]
[1747189180587,5.51450314,181.34,181.27,0.42648471]
[1747189180988,5.51450314,181.34,181.32,8.43804099]
[1747189181706,5.51450314,181.34,181.26,8.43804099]
[1747189181707,27.73880198,181.34,181.26,0.14216157]
[1747189181912,83.1,181.33,181.3,8.43804099]
[1747189182078,83.1,181.32,181.3,8.43804099]
[1747189182409,83.1,181.32,181.25,26.14216157]
[1747189182577,83.1,181.31,181.29,8.43804099]
[1747189183771,13.95376079,181.3,181.25,8.43804099]
[1747189183990,83.1,181.29,181.25,8.43804099]
[1747189184194,83.1,181.29,181.24,30.72]
[1747189184506,83.1,181.29,181.26,8.43804099]
[1747189185086,83.1,181.29,181.24,30.72]
[1747189185386,83.1,181.29,181.26,8.43804099]
[1747189185701,83.1,181.29,181.27,8.43804099]
[1747189185898,5.51632833,181.28,181.27,8.43804099]
[1747189187597,5.51632833,181.28,181.23,1.6466]
[1747189187774,5.51632833,181.28,181.25,8.43804099]
[1747189188397,83.1,181.27,181.25,8.43804099]
[1747189188911,7.61747709,181.32,181.27,0.28432314]
[1747189189213,7.61747709,181.32,181.31,8.43804099]
[1747189189709,7.61747709,181.32,181.27,0.28432314]
[1747189189880,13.13262801,181.32,181.31,8.43804099]
[1747189190593,13.13262801,181.32,181.27,0.28432314]
[1747189190898,13.13262801,181.32,181.26,8.43804099]
[1747189191081,13.13262801,181.32,181.25,26.28432314]
[1747189191082,13.13262801,181.32,181.3,8.43804099]
[1747189191692,13.13262801,181.32,181.31,8.43804099]
[1747189192102,13.13262801,181.32,181.26,8.72236413]
[1747189192303,13.13262801,181.32,181.3,8.43804099]
[1747189192506,13.13262801,181.32,181.31,8.43804099]
[1747189192907,7.61747709,181.32,181.31,8.43804099]
[1747189194895,5.5146916,181.34,181.31,8.43804099]
[1747189195075,13.1316902,181.35,181.33,8.43804099]
[1747189195580,13.1316902,181.35,181.28,0.28432314]
[1747189195780,13.1316902,181.35,181.33,8.43804099]
[1747189197010,13.1316902,181.35,181.28,0.28432314]
[1747189197212,13.1316902,181.35,181.32,8.43804099]
[1747189198001,13.1316902,181.35,181.28,0.28432314]
[1747189198002,13.1316902,181.35,181.34,8.43804099]
[1747189198201,13.1316902,181.35,181.28,0.28432314]
[1747189198202,7.61747709,181.34,181.33,8.43804099]
[1747189200090,13.13198023,181.34,181.33,8.43804099]
[1747189200595,7.61747709,181.34,181.33,8.43804099]
[1747189200804,7.61747709,181.36,181.33,8.43804099]
[1747189200996,13.13145063,181.36,181.29,0.28432314]
[1747189201201,5.51450314,181.34,181.28,6.3839]
[1747189201406,5.51450314,181.34,181.32,8.43804099]
[1747189202204,13.95254413,181.34,181.3,8.43804099]
[1747189202408,7.61747709,181.33,181.24,36.3932]
[1747189202604,16.05551808,181.33,181.28,8.43804099]
[1747189202802,7.61747709,181.32,181.29,8.43804099]
[1747189203315,7.61747709,181.32,181.27,0.28432314]
[1747189203527,13.13109419,181.37,181.31,8.43804099]
[1747189203820,7.61747709,181.36,181.33,8.43804099]
[1747189204322,7.61747709,181.36,181.34,8.43804099]
[1747189204533,13.1313721,181.36,181.35,8.43804099]
[1747189204898,7.61747709,181.36,181.35,8.43804099]
[1747189205518,13.1313721,181.36,181.28,0.28432314]
[1747189205730,7.61747709,181.35,181.32,8.43804099]
[1747189205928,7.61747709,181.35,181.33,8.43804099]
[1747189206094,7.61747709,181.35,181.28,26.28432314]
[1747189206297,7.61747709,181.34,181.33,8.43804099]
[1747189206834,13.13198023,181.34,181.33,8.43804099]
[1747189207324,13.13198023,181.34,181.31,8.43804099]
[1747189207501,13.95254413,181.34,181.23,3.34880535]
[1747189207703,8.43804099,181.33,181.28,8.43804099]
[1747189208020,8.43804099,181.33,181.23,56.62242314]
[1747189208220,19.30076099,181.34,181.29,8.43804099]
[1747189208430,27.73880198,181.34,181.25,0.28432314]
[1747189208733,27.73880198,181.34,181.29,8.43804099]
[1747189209028,19.30076099,181.34,181.3,8.43804099]
[1747189209227,27.73880198,181.34,181.29,8.43804099]
[1747189212226,5.5151114,181.32,181.28,8.43804099]
[1747189212409,5.5151114,181.32,181.23,26.32242314]
[1747189212598,5.5151114,181.32,181.28,8.43804099]
[1747189212800,7.61747709,181.31,181.28,8.43804099]
[1747189213133,7.61747709,181.31,181.23,26.32242314]
[1747189213134,16.05551808,181.3,181.23,0.0381]
[1747189213334,7.61747709,181.29,181.25,8.43804099]
[1747189214135,8.43804099,181.26,181.23,0.0381]
[1747189214317,13.95528236,181.25,181.23,0.0381]
[1747189215031,8.43804099,181.24,181.23,0.0381]
[1747189216215,5.51754579,181.24,181.23,0.0381]
[1747189216719,5.51693699,181.26,181.23,8.47614099]
[1747189216919,5.51693699,181.26,181.24,8.43804099]
[1747189217121,5.51602404,181.29,181.25,8.43804099]
[1747189217322,5.51602404,181.29,181.23,0.0381]
[1747189217323,5.51602404,181.29,181.26,8.43804099]
[1747189217536,5.51602404,181.29,181.28,8.43804099]
[1747189218043,5.51602404,181.29,181.27,8.43804099]
[1747189218413,5.5157198,181.3,181.27,8.43804099]
[1747189219033,5.5157198,181.3,181.23,0.0381]
[1747189219451,19.3050193,181.3,181.23,0.0381]
[1747189219622,7.61747709,181.29,181.23,0.0381]
[1747189219816,8.43804099,181.27,181.23,0.0381]
[1747189220033,8.43804099,181.27,181.23,8.47614099]
[1747189220228,16.05551808,181.29,181.24,8.43804099]
[1747189220434,5.51632833,181.28,181.24,8.43804099]
[1747189221322,5.51632833,181.28,181.24,13.49670766]
[1747189221944,5.51632833,181.28,181.26,13.49670766]
[1747189222528,13.49670766,181.27,181.23,0.0381]
[1747189222719,19.30714915,181.28,181.23,0.0381]
[1747189222919,32.80385681,181.28,181.23,13.53480766]
[1747189223440,32.80385681,181.28,181.24,13.49670766]
[1747189224146,13.49670766,181.27,181.23,0.0381]
[1747189224342,13.49670766,181.26,181.23,0.0381]
[1747189224581,7.61747709,181.25,181.23,0.0381]
[1747189224720,7.61747709,181.25,181.23,13.53480766]
[1747189225050,7.61747709,181.25,181.24,13.49670766]
[1747189225935,7.61747709,181.25,181.23,0.0381]
[1747189226136,7.61747709,181.25,181.24,13.49670766]
[1747189226451,13.13473505,181.25,181.23,0.0381]
[1747189226657,13.13473505,181.25,181.24,13.49670766]
[1747189230556,7.61747709,181.28,181.24,13.49670766]
[1747189230750,7.61747709,181.28,181.27,13.49670766]
[1747189230959,21.11418475,181.33,181.27,13.49670766]
[1747189231134,7.61747709,181.32,181.29,13.49670766]
[1747189231852,13.13258849,181.32,181.29,13.49670766]
[1747189232273,13.09045659,181.32,181.29,13.49670766]
[1747189233472,13.09045659,181.32,181.3,13.49670766]
[1747189233759,13.09045659,181.32,181.26,26.28432314]
[1747189233938,13.09045659,181.32,181.3,13.49670766]
[1747189237167,13.09045659,181.32,181.29,13.49670766]
[1747189237569,13.09045659,181.32,181.26,26.28432314]
[1747189237763,13.09045659,181.32,181.29,13.49670766]
[1747189238148,13.09045659,181.32,181.26,26.28432314]
[1747189238347,13.09045659,181.32,181.29,13.49670766]
[1747189238566,13.09045659,181.32,181.26,26.28432314]
[1747189238763,13.09045659,181.32,181.29,13.49670766]
[1747189239675,13.09045659,181.32,181.3,13.49670766]
[1747189239872,7.57534519,181.32,181.3,13.49670766]
[1747189240046,7.57534519,181.32,181.31,13.49670766]
[1747189241151,7.57534519,181.32,181.29,0.28432314]
[1747189241355,7.57534519,181.32,181.31,8.42755575]
[1747189242376,7.57534519,181.37,181.31,8.56971732]
[1747189242557,13.08900902,181.37,181.34,8.42755575]
[1747189244683,13.08900902,181.37,181.31,0.28432314]
[1747189244867,13.08900902,181.37,181.34,8.42755575]
[1747189247271,13.08900902,181.37,181.35,8.42755575]
[1747189247656,13.08900902,181.37,181.34,8.42755575]
[1747189248780,13.08900902,181.37,181.31,0.28432314]
[1747189248988,13.08900902,181.37,181.34,8.42755575]
[1747189249659,8.42755575,181.35,181.31,8.42755575]
[1747189250166,26.87298652,181.37,181.31,8.42755575]
[1747189250366,26.87298652,181.37,181.32,8.42755575]
[1747189250570,5.51419906,181.35,181.32,8.42755575]
[1747189251497,5.51389501,181.36,181.32,8.42755575]
[1747189252708,5.51389501,181.36,181.35,8.42755575]
[1747189253084,5.51389501,181.36,181.3,0.28432314]
[1747189253280,5.51389501,181.36,181.32,8.42755575]
[1747189253981,5.51389501,181.36,181.33,8.42755575]
[1747189254878,5.51389501,181.36,181.3,26.0]
[1747189255086,5.51389501,181.36,181.33,8.42755575]
[1747189255703,19.29863254,181.36,181.3,26.0]
[1747189255896,8.42755575,181.34,181.3,8.42755575]
[1747189256598,16.00290094,181.35,181.3,8.42755575]
[1747189256797,7.57534519,181.35,181.31,8.42755575]
[1747189256999,7.57534519,181.35,181.33,8.42755575]
[1747189257190,7.57534519,181.35,181.29,26.0]
[1747189257191,7.57534519,181.35,181.34,8.42755575]
[1747189257391,5.51389501,181.36,181.34,8.42755575]
[1747189257795,83.1,181.38,181.35,8.42755575]
[1747189257980,5.51268855,181.4,181.37,8.42755575]
[1747189258177,5.51268855,181.4,181.35,8.42755575]
[1747189258479,5.51268855,181.4,181.39,8.42755575]
[1747189259007,83.1,181.41,181.39,8.42755575]
[1747189259008,88.61239735,181.41,181.39,8.42755575]
[1747189259203,83.1,181.41,181.4,8.42755575]
[1747189259979,5.51085638,181.46,181.4,8.42755575]
[1747189260177,5.51085638,181.46,181.45,8.38542384]
[1747189260808,5.51085638,181.46,181.41,26.0]
[1747189260989,83.1,181.45,181.41,8.42755575]
[1747189261186,94.32088723,181.45,181.4,8.42755575]
[1747189261499,85.89333148,181.45,181.42,8.42755575]
[1747189261802,5.51146384,181.44,181.42,8.42755575]
[1747189263303,5.51146384,181.44,181.43,8.42755575]
[1747189263809,5.51146384,181.44,181.42,8.42755575]
[1747189264406,5.51146384,181.44,181.43,8.42755575]
[1747189266524,5.51146384,181.44,181.39,26.0]
[1747189266699,5.51146384,181.44,181.43,8.42755575]
[1747189266893,5.51146384,181.44,181.39,26.0]
[1747189267193,19.29012345,181.44,181.4,8.42755575]
[1747189267514,19.29012345,181.44,181.42,8.42755575]
[1747189267895,19.29012345,181.44,181.39,26.0]
[1747189268095,19.29012345,181.44,181.42,8.42755575]
[1747189269713,5.51146384,181.44,181.43,8.42755575]
[1747189269904,88.61123914,181.45,181.43,8.42755575]
[1747189270100,88.61123914,181.45,181.44,8.42755575]
[1747189270920,88.61123914,181.45,181.4,0.28432314]
[1747189271228,8.42755575,181.43,181.38,8.42755575]
[1747189271713,5.51207143,181.42,181.39,8.42755575]
[1747189272514,5.51207143,181.42,181.4,8.42755575]
[1747189272820,5.51207143,181.42,181.36,32.6627]
[1747189273007,5.51207143,181.42,181.4,8.42755575]
[1747189273922,5.51176762,181.43,181.4,8.42755575]
[1747189274225,5.51176762,181.43,181.36,32.6627]
[1747189274522,83.1,181.42,181.4,8.42755575]
[1747189274825,83.1,181.42,181.41,8.42755575]
[1747189275705,5.51148896,181.44,181.41,8.42755575]
[1747189276225,5.51148896,181.44,181.43,8.42755575]
[1747189276902,5.51148896,181.44,181.42,8.42755575]
[1747189277090,5.51148896,181.44,181.41,8.42755575]
[1747189277806,5.51148896,181.44,181.43,8.42755575]
[1747189278811,5.51148896,181.44,181.39,26.0]
[1747189279017,5.51148896,181.44,181.43,8.42755575]
[1747189279198,5.51148896,181.44,181.42,8.42755575]
[1747189279917,5.51148896,181.44,181.43,8.42755575]
[1747189280103,5.51085638,181.46,181.43,8.42755575]
[1747189280307,88.61085638,181.46,181.45,8.42755575]
[1747189282020,8.19781207,181.48,181.45,8.42755575]
[1747189282332,5.51033619,181.48,181.47,8.42755575]
[1747189283221,5.51033619,181.48,181.43,0.28432314]
[1747189283403,5.51033619,181.48,181.47,8.42755575]
[1747189286229,8.42755575,181.54,181.48,1.6485]
[1747189286230,83.1,181.54,181.48,1.6485]
[1747189286516,102.38055967,181.53,181.49,8.42755575]
[1747189286700,102.38055967,181.53,181.5,8.42755575]
[1747189286901,102.38055967,181.53,181.45,26.0]
[1747189287223,8.42755575,181.51,181.43,26.14216157]
[1747189287401,8.42755575,181.48,181.42,1.6485]
[1747189287726,8.42755575,181.48,181.43,8.42755575]
[1747189287930,8.42755575,181.49,181.42,1.6485]
[1747189288098,8.42755575,181.49,181.44,8.42755575]
[1747189288427,8.42755575,181.49,181.42,1.6485]
[1747189288428,5.51024906,181.48,181.46,8.42755575]
[1747189290039,13.77558418,181.49,181.46,8.42755575]
[1747189290337,13.77558418,181.49,181.42,1.6485]
[1747189290539,22.20313993,181.49,181.42,1.6485]
[1747189290845,22.20313993,181.49,181.44,8.42755575]
[1747189291344,13.77558418,181.49,181.44,8.42755575]
[1747189291521,5.50964187,181.5,181.47,8.42755575]
[1747189291834,83.1,181.49,181.46,8.42755575]
[1747189292035,5.51024906,181.48,181.45,8.42755575]
[1747189292637,8.42755575,181.46,181.36,1.5698]
[1747189292937,91.52755575,181.45,181.4,8.42755575]
[1747189293238,83.1,181.44,181.4,8.42755575]
[1747189293742,83.1,181.44,181.37,26.0]
[1747189293743,83.1,181.44,181.43,8.42755575]
[1747189294118,88.61146384,181.44,181.37,26.0]
[1747189294322,88.61146384,181.44,181.38,26.0]
[1747189294535,88.61146384,181.44,181.43,8.42755575]
[1747189294743,83.1,181.44,181.43,8.42755575]
[1747189295245,5.51122747,181.45,181.43,8.42755575]
[1747189295412,5.51122747,181.45,181.44,8.42755575]
[1747189295907,83.1,181.47,181.44,8.42755575]
[1747189296108,5.51085638,181.46,181.39,0.28432314]
[1747189296337,5.51085638,181.46,181.45,8.42755575]
[1747189296708,88.61063162,181.47,181.45,8.42755575]
[1747189296909,88.61063162,181.47,181.46,8.42755575]
[1747189298744,83.1,181.47,181.46,8.42755575]
[1747189299039,88.6105527,181.47,181.46,8.42755575]
[1747189301513,5.51016729,181.49,181.46,8.42755575]
[1747189301740,5.51016729,181.49,181.48,8.42755575]
[1747189304231,83.1,181.53,181.48,8.42755575]
[1747189304431,5.50903481,181.52,181.47,26.0]
[1747189304633,5.50903481,181.52,181.51,8.42755575]
[1747189305716,5.5078211,181.56,181.51,8.42755575]
[1747189305916,5.5078211,181.56,181.52,8.42755575]
[1747189306153,83.1,181.55,181.52,8.42755575]
[1747189307228,5.50842789,181.54,181.52,8.42755575]
[1747189307824,5.50842789,181.54,181.51,8.42755575]
[1747189308150,5.50842789,181.54,181.52,8.42755575]
[1747189308653,5.50842789,181.54,181.53,8.42755575]
[1747189309823,21.9653661,181.54,181.5,8.42755575]
[1747189310022,56.39292185,181.54,181.49,8.42755575]
[1747189310339,8.42755575,181.53,181.48,8.42755575]
[1747189310542,83.1,181.52,181.49,8.42755575]
[1747189310722,83.1,181.52,181.5,8.42755575]
[1747189310932,83.1,181.52,181.51,8.42755575]
[1747189311441,83.1,181.52,181.5,8.42755575]
[1747189311835,5.50933832,181.51,181.45,0.28432314]
[1747189312034,5.50933832,181.51,181.5,8.42755575]
[1747189312656,88.60909893,181.52,181.5,8.42755575]
[1747189312858,88.60909893,181.52,181.45,4.14207724]
[1747189313065,88.60909893,181.52,181.51,8.42755575]
[1747189316637,83.1,181.52,181.51,8.42755575]
[1747189317259,88.60903481,181.52,181.51,8.42755575]
[1747189317569,5.50903481,181.52,181.51,8.42755575]
[1747189318468,5.50873133,181.53,181.51,8.42755575]
[1747189318665,5.50873133,181.53,181.52,8.42755575]
[1747189319247,88.6084723,181.54,181.52,8.42755575]
[1747189319467,88.6084723,181.54,181.53,8.42755575]
[1747189320565,88.60842789,181.54,181.53,8.42755575]
[1747189323545,5.50842789,181.54,181.53,8.42755575]
[1747189323781,5.50842789,181.54,181.48,28.98]
[1747189323782,22.09725744,181.54,181.48,28.98]
[1747189324075,83.1,181.53,181.49,8.42755575]
[1747189324752,5.50903481,181.52,181.49,8.42755575]
[1747189325263,5.50903481,181.52,181.48,28.98]
[1747189325264,5.50903481,181.52,181.51,8.42755575]
[1747189325678,5.50903481,181.52,181.48,54.98]
[1747189325855,5.50903481,181.52,181.51,8.42755575]
[1747189326374,5.50903481,181.52,181.48,54.98]
[1747189326562,5.50903481,181.52,181.51,8.42755575]
[1747189326972,5.50903481,181.52,181.48,54.98]
[1747189327175,5.50903481,181.52,181.51,8.42755575]
[1747189327465,19.28162185,181.52,181.5,8.42755575]
[1747189327672,19.28162185,181.52,181.49,8.42755575]
[1747189328253,19.28162185,181.52,181.48,37.40755575]
[1747189328572,19.28162185,181.52,181.49,8.42755575]
[1747189328784,19.28162185,181.52,181.5,8.42755575]
[1747189329343,83.1,181.51,181.5,8.42755575]
[1747189330163,88.60933832,181.51,181.5,8.42755575]
[1747189330473,88.60933832,181.51,181.49,8.42755575]
[1747189330844,88.60933832,181.51,181.48,37.40755575]
[1747189331179,88.60933832,181.51,181.48,28.98]
[1747189331582,8.42755575,181.49,181.44,9.99355575]
[1747189331750,83.1,181.48,181.44,9.99355575]
[1747189332376,5.5105527,181.47,181.45,8.42755575]
[1747189332767,5.5105527,181.47,181.46,8.42755575]
[1747189332968,83.1,181.48,181.46,8.42755575]
[1747189333277,83.1,181.48,181.47,8.42755575]
[1747189334886,88.61029933,181.48,181.47,8.42755575]
[1747189335178,88.61029933,181.48,181.45,0.28432314]
[1747189335375,88.61029933,181.48,181.45,8.42755575]
[1747189335747,88.61029933,181.48,181.44,9.99355575]
[1747189336684,88.61029933,181.48,181.45,8.42755575]
[1747189338267,88.61029933,181.48,181.46,8.42755575]
[1747189338762,88.61029933,181.48,181.45,8.42755575]
[1747189339992,88.61029933,181.48,181.39,4.00123728]
[1747189339993,8.42755575,181.46,181.37,7.7184]
[1747189340280,2.77930555,181.54,181.42,0.28432314]
[1747189340581,8.42755575,181.54,181.47,8.42755575]
[1747189340784,8.42755575,181.54,181.45,0.14216157]
[1747189340961,8.42755575,181.54,181.47,8.42755575]
[1747189341163,8.42755575,181.54,181.44,0.14216157]
[1747189341371,8.42755575,181.51,181.45,8.42755575]
[1747189341563,0.14216157,181.57,181.46,8.42755575]
[1747189341770,8.42755575,181.54,181.48,8.42755575]
[1747189341968,5.50903481,181.52,181.48,8.42755575]
[1747189342375,7.50976486,181.53,181.48,8.42755575]
[1747189342569,7.50976486,181.53,181.5,8.42755575]
[1747189342755,5.50876667,181.53,181.5,8.42755575]
[1747189343883,8.42755575,181.51,181.41,7.7184]
[1747189344072,5.5105527,181.47,181.42,8.42755575]
[1747189344282,13.93810845,181.47,181.41,7.7184]
[1747189345171,8.42755575,181.46,181.41,1.638]
[1747189345366,8.42755575,181.46,181.4,8.42755575]
[1747189345891,19.28693447,181.47,181.4,8.42755575]
[1747189345892,8.42755575,181.45,181.4,8.42755575]
[1747189346089,13.93901959,181.44,181.39,8.42755575]
[1747189346272,8.42755575,181.42,181.37,45.05495575]
[1747189346669,8.42755575,181.42,181.37,36.6274]
[1747189346869,8.42755575,181.43,181.37,45.05495575]
[1747189347090,8.42755575,181.42,181.37,16.47495575]
[1747189347390,8.42755575,181.42,181.37,10.07205575]
[1747189347587,5.51146384,181.44,181.39,8.42755575]
[1747189347779,8.42755575,181.46,181.41,8.42755575]
[1747189348164,5.51085638,181.46,181.42,8.42755575]
[1747189348585,5.50994545,181.49,181.45,8.42755575]
[1747189348883,13.9375012,181.49,181.41,6.5353]
[1747189349092,13.9375012,181.49,181.44,8.42755575]
[1747189350591,13.9375012,181.49,181.41,6.5353]
[1747189350770,5.50994545,181.49,181.41,6.5353]
[1747189350969,5.50994545,181.49,181.46,8.42755575]
[1747189351404,88.60994545,181.49,181.46,8.42755575]
[1747189352777,88.60994545,181.49,181.45,8.42755575]
[1747189353183,102.38480907,181.49,181.45,8.42755575]
[1747189353382,110.81236482,181.49,181.44,8.42755575]
[1747189353566,102.38480907,181.49,181.45,8.42755575]
[1747189353890,110.81236482,181.49,181.44,8.42755575]
[1747189354090,110.81236482,181.49,181.43,8.42755575]
[1747189354285,8.42755575,181.47,181.42,8.42755575]
[1747189354491,83.1,181.46,181.42,8.42755575]
[1747189354994,83.1,181.46,181.43,8.42755575]
[1747189355389,5.51116009,181.45,181.43,8.42755575]
[1747189356501,83.1,181.44,181.43,8.42755575]
[1747189357604,88.61146384,181.44,181.43,8.42755575]
[1747189357771,83.1,181.44,181.43,8.42755575]
[1747189360892,88.61146395,181.44,181.38,28.58]
[1747189361091,88.61146395,181.44,181.43,8.42755575]
[1747189361279,83.1,181.43,181.41,8.42755575]
[1747189361681,83.1,181.43,181.37,8.2444]
[1747189362003,83.1,181.42,181.37,8.2444]
[1747189362379,88.61228158,181.42,181.37,8.2444]
[1747189363108,88.61228158,181.42,181.41,8.42755575]
[1747189363397,5.51228158,181.42,181.41,8.42755575]
[1747189363607,19.28842363,181.46,181.41,8.42755575]
[1747189363814,19.28842363,181.46,181.44,8.42755575]
[1747189364689,5.51085638,181.46,181.45,8.42755575]
[1747189365514,19.28162185,181.52,181.45,8.42755575]
[1747189365685,8.56971732,181.51,181.46,8.42755575]
[1747189366114,26.0,181.48,181.46,8.42755575]
[1747189366797,5.5105527,181.47,181.46,8.42755575]
[1747189367905,88.6105527,181.47,181.46,8.42755575]
[1747189368703,83.1,181.47,181.46,8.42755575]
[1747189370298,88.60988744,181.5,181.46,8.42755575]
[1747189370501,88.60988744,181.5,181.49,8.42755575]
[1747189373824,96.86997811,181.56,181.49,8.42755575]
[1747189374014,88.60812448,181.55,181.48,0.28432314]
[1747189374623,83.1,181.54,181.48,26.28432314]
[1747189374801,83.1,181.54,181.49,26.0]
[1747189375306,83.1,181.54,181.53,16.8551115]
[1747189377623,83.1,181.54,181.53,8.42755575]
[1747189378833,88.60842789,181.54,181.53,8.42755575]
[1747189380231,83.1,181.54,181.53,16.8551115]
[1747189380530,5.50816287,181.55,181.53,16.8551115]
[1747189380832,5.50816287,181.55,181.54,8.42755575]
[1747189382533,83.1,181.57,181.54,8.42755575]
[1747189382534,5.5078211,181.56,181.54,8.42755575]
[1747189382832,5.5078211,181.56,181.55,8.42755575]
[1747189386617,19.27737386,181.56,181.48,0.28432314]
[1747189386840,83.1,181.55,181.53,8.42755575]
[1747189387130,83.1,181.54,181.53,8.42755575]
[1747189387537,88.60842789,181.54,181.53,8.42755575]
[1747189389824,102.37949762,181.54,181.52,8.42755575]
[1747189390831,102.37949762,181.54,181.51,8.42755575]
[1747189391027,102.37949762,181.54,181.47,54.16]
[1747189391028,91.52755575,181.53,181.48,8.42755575]
[1747189391437,83.1,181.53,181.5,8.42755575]
[1747189391644,83.1,181.53,181.52,8.42755575]
[1747189391847,88.60873133,181.53,181.52,8.42755575]
[1747189392343,102.38055967,181.53,181.45,1.5026]
[1747189392643,102.38055967,181.53,181.49,8.42755575]
[1747189392820,83.1,181.52,181.45,1.5026]
[1747189393022,83.1,181.51,181.48,8.42755575]
[1747189393518,83.1,181.51,181.5,8.42755575]
[1747189393947,88.60933832,181.51,181.5,8.42755575]
[1747189395160,26.0,181.47,181.34,7.9274]
[1747189395321,8.42755575,181.41,181.34,7.9274]
[1747189395647,8.42755575,181.4,181.35,8.42755575]
[1747189395851,26.0,181.43,181.35,8.42755575]
[1747189395852,8.42755575,181.41,181.35,8.42755575]
[1747189396023,27.72193281,181.4,181.35,8.42755575]
[1747189396725,19.29437706,181.4,181.34,1.6303]
[1747189396932,5.51267916,181.4,181.38,8.42755575]
[1747189397320,5.51267916,181.4,181.37,8.42755575]
[1747189397640,13.94023491,181.4,181.35,8.42755575]
[1747189397843,27.72193281,181.4,181.34,10.05785575]
[1747189398017,27.72193281,181.4,181.34,1.6303]
[1747189398214,27.72193281,181.4,181.34,10.05785575]
[1747189398523,27.72193281,181.4,181.35,8.42755575]
[1747189399118,19.29437706,181.4,181.36,8.42755575]
[1747189400226,19.29437706,181.4,181.34,1.6303]
[1747189400227,19.29437706,181.4,181.37,8.42755575]
[1747189401447,5.51328702,181.38,181.36,8.42755575]
[1747189401817,5.51328702,181.38,181.35,8.42755575]
[1747189402839,5.51328702,181.38,181.34,1.6303]
[1747189403029,5.51328702,181.38,181.3,6.4003]
[1747189403030,8.42755575,181.36,181.3,6.4003]
[1747189403243,83.1,181.35,181.31,8.42755575]
[1747189403462,5.51450314,181.34,181.31,8.42755575]
[1747189403825,5.51450314,181.34,181.33,8.42755575]
[1747189404774,88.61422184,181.35,181.3,6.4003]
[1747189404918,83.1,181.35,181.33,8.42755575]
[1747189405123,83.1,181.35,181.34,8.42755575]
[1747189406142,83.1,181.35,181.32,0.28432314]
[1747189406445,83.1,181.35,181.34,8.42755575]
[1747189408041,5.51301866,181.39,181.34,8.42755575]
[1747189408232,5.51301866,181.39,181.37,8.42755575]
[1747189408848,5.51301866,181.39,181.33,27.78]
[1747189409154,5.51301866,181.39,181.36,8.42755575]
[1747189409339,5.51301866,181.39,181.35,8.42755575]
[1747189409846,5.51301866,181.39,181.36,8.42755575]
[1747189410155,19.2948961,181.4,181.36,8.42755575]